[Event "FIDE CB Open 2022"]
[Site "Ceske Budejovice"]
[Date "2022.07.06"]
[Round "6.22"]
[White "Ondrejat, Miroslav"]
[Black "Vltavsky, Vladimir"]
[Result "1/2-1/2"]
[ECO "C41"]
[WhiteElo "1903"]
[BlackElo "2106"]
[Annotator "TA"]
[PlyCount "66"]
[EventDate "2022.07.01"]
[EventType "swiss"]
[EventCountry "CZE"]
[SourceTitle "playchess.com"]
[Source "ChessBase"]
[SourceQuality "1"]
[TimeControl "40/5400+30:1800+30"]

{[%evp 13,66,40,56,22,42,45,78,48,82,15,26,28,26,17,31,10,15,0,39,-8,0,-22,-21,-22,-20,-61,-65,-54,-45,-100,-84,-93,-95,-114,-122,-110,-65,-85,-71,-72,-26,-55,0,-8,-8,-22,-10,-14,-14,-27,43,22,50,56,60]} 1. e4 {[%emt 0:00:13]} d6 {[%emt 0:07:51]} 2. d4 {[%emt 0:00:55]} Nf6 {[%emt 0:00:25]} 3. Nc3 {[%emt 0:00:03]} e5 {[%emt 0:00:04]} 4. Nf3 {[%emt 0:03:46]} Nbd7 {[%emt 0:00:15]} 5. Bc4 {[%emt 0:01:16]} h6 {[%emt 0:00:07]} 6. O-O {[%emt 0:00:17]} Be7 {[%emt 0:00:05]} 7. a4 $1 {[%emt 0:00:14][%mdl 4] is recently more successful than 7.Re1.} c6 {[%emt 0:01:10]} 8. Bb3 {[%emt 0:00:21] [#] C41: Philidor Defence.} b6 $146 {[%emt 0:00:34]} ({Predecessor:} 8... a5 9. Qe2 Qc7 10. Rd1 Nf8 11. Be3 Ng6 12. Rd2 O-O 13. Rad1 Ng4 14. h3 Nxe3 15. Qxe3 exd4 16. Rxd4 {1-0 (31) Morris Suzuki,S (2067)-Necula,I (1890) Chess.com INT 2022}) 9. Re1 {[%emt 0:00:12]} a6 {[%emt 0:01:03]} 10. h3 {[%emt 0:13:19] White is more active. White is better.} Qc7 {[%emt 0:04:54]} 11. dxe5 {[%emt 0:10:24]} (11. Nh4 $16) 11... dxe5 $11 {[%emt 0:01:22]} 12. Bc4 {[%emt 0:13:55]} Bb7 {[%emt 0:05:18]} 13. Qe2 {[%emt 0:03:04]} b5 {[%emt 0:02:55]} 14. axb5 {[%emt 0:01:00]} axb5 {[%emt 0:00:05]} 15. Rxa8+ {[%emt 0:00:10]} Bxa8 {[%emt 0:00:04]} 16. Bd3 {[%emt 0:04:05]} (16. Ba2 $1 $14) 16... O-O {[%emt 0:03:30]} 17. Nh4 {[%emt 0:01:46]} Rd8 {[%emt 0:02:25]} 18. Nf5 {[%emt 0:04:35]} Bf8 {[%emt 0:00:21]} 19. g4 {[%emt 0:00:44]} Nh7 {[%emt 0:00:41]} 20. h4 {[%emt 0:00:23]} Nc5 {[%emt 0:00:23]} 21. g5 {[%emt 0:05:20]} (21. Be3 $15) 21... hxg5 $17 {[%emt 0:04:00]} 22. hxg5 {[%emt 0:02:34]} g6 {[%emt 0:02:05] Inhibits Qh5.} 23. Nh6+ {[%emt 0:00:55]} Bxh6 {[%emt 0:04:29]} 24. gxh6 {[%emt 0:00:02]} b4 {[%emt 0:02:45]} 25. Nd1 {[%emt 0:00:47][%cal Bc3d1,Bd1e3,Be3c4][%mdl 32]} Nxd3 {[%emt 0:03:50]} 26. cxd3 {[%emt 0:00:03]} Qd6 {[%emt 0:00:39]} (26... Bb7 $17) 27. Ne3 {[%emt 0:03:51]} Qxd3 {[%emt 0:02:48]} ({Better is} 27... Bb7 $1 $15) 28. Qf3 {[%emt 0:00:29] [#] Rd1 is the strong threat.} Qd6 {[%emt 0:02:56]} 29. Rd1 {[%emt 0:12:52]} Qf6 {[%emt 0:03:43]} 30. Rxd8+ {[%emt 0:03:22]} Qxd8 {[%emt 0:00:07]} 31. Nc4 {[%emt 0:00:38]} Qe7 {[%emt 0:05:08]} ({Black should try} 31... Ng5 $11 32. Qg4 {[#]} Nxe4 $1 33. Nxe5 (33. h7+ Kxh7 34. Nxe5 c5 $17) 33... Nf6 34. h7+ Kxh7 35. Nxf7 Nxg4 36. Nxd8 c5) 32. Qg3 $14 {[%emt 0:00:58][%mdl 1024] White has compensation.} c5 {[%emt 0:01:42]} 33. f3 {[%emt 0:00:37]} Nf8 {[%emt 0:00:25] Weighted Error Value: White=0.18 (very precise) /Black=0.16 (very precise)} 1/2-1/2

[Event "FIDE CB Open 2022"]
[Site "Ceske Budejovice"]
[Date "2022.07.06"]
[Round "6.23"]
[White "Dotzer, Lukas"]
[Black "Lang, Simon"]
[Result "0-1"]
[ECO "C09"]
[WhiteElo "2269"]
[BlackElo "1942"]
[Annotator "TA"]
[PlyCount "58"]
[EventDate "2022.07.01"]
[EventType "swiss"]
[EventCountry "CZE"]
[SourceTitle "playchess.com"]
[Source "ChessBase"]
[SourceQuality "1"]
[TimeControl "40/5400+30:1800+30"]

{[%evp 11,57,-23,0,-73,-37,-379,-18,-30,-19,-42,0,0,0,0,20,-127,-140,-193,-196,-241,-181,-224,-158,-183,-144,-156,-133,-242,-236,-438,-260,-281,-226,-215,-209,-205,-221,-205,-207,-435,-445,-685,-480,-463,-435,-29987,-2262,-29999]} 1. e4 {[%emt 0:00:04]} e6 {[%emt 0:00:40]} 2. d4 {[%emt 0:00:13]} d5 {[%emt 0:00:21]} 3. Nd2 {[%emt 0:00:24]} c5 {[%emt 0:00:57]} 4. exd5 {[%emt 0:01:08]} exd5 {[%emt 0:00:25]} 5. dxc5 {[%emt 0:01:48]} Bxc5 {[%emt 0:01:20]} 6. Ngf3 {[%emt 0:00:39]} Nc6 {[%emt 0:01:02]} 7. a3 {[%emt 0:01:44] C09: French Tarrasch: 3...c5 4 exd5 exd5 5 Ngf3 Nc6.} (7. Nb3 $11) 7... Nf6 {[%emt 0:02:43] Hoping for ...Ng4. Black is more active.} (7... Qb6 $5 {[%cal Rc5f2]} 8. Bd3 (8. Qe2+ Kf8 $17) 8... Bxf2+ 9. Kf1 Be3 $17) 8. Be2 $2 {[%emt 0:02:51][%mdl 8192] [#]} (8. Bd3 $15) 8... O-O $2 {[%emt 0:02:07]} (8... Bxf2+ $1 $19 {[%mdl 512]} 9. Kf1 (9. Kxf2 $2 Ng4+ 10. Ke1 Ne3 $19) 9... Bb6) 9. O-O $11 {[%emt 0:03:40] [#] The position is equal.} Re8 $146 {[%emt 0:04:58]} ({Predecessor:} 9... Bf5 10. b4 Be7 11. Bb2 Rc8 12. Rc1 Re8 13. Nb3 a6 14. Nfd4 Nxd4 15. Nxd4 Bg6 16. Bd3 Bxd3 17. Qxd3 {1-0 (26) Siska,K (1735)-Sefcik,O (1139) Slovakia 2019}) 10. b4 {[%emt 0:01:46]} Bb6 {[%emt 0:23:38]} (10... Bd4 $5 {[%cal Rd4a1]} 11. Rb1 Bc3 $11) 11. Bb2 {[%emt 0:08:19]} Bg4 {[%emt 0:12:00][%cal Bc8g4,Bg4h5,Bh5g6][%mdl 32]} 12. h3 {[%emt 0:08:07] Bxf6 is the strong threat.} Bh5 {[%emt 0:03:15]} 13. Bd3 {[%emt 0:12:26] [#]} (13. c4 $1 $11 {remains equal.}) 13... Ne4 $1 $17 {[%emt 0:02:49] White is on the road to losing.} 14. g4 {[%emt 0:05:18]} (14. Rb1 $17) 14... Bg6 $19 {[%emt 0:02:03] Strongly threatening ...Qc7.} 15. b5 {[%emt 0:09:18]} Na5 {[%emt 0:14:36] And now ...h5 would win.} 16. Bd4 {[%emt 0:10:07]} Bc7 {[%emt 0:05:36]} 17. Re1 {[%emt 0:08:25]} Qd6 {[%emt 0:02:51]} 18. Nf1 {[%emt 0:01:56]} Rad8 {[%emt 0:04:43]} 19. Ne3 {[%emt 0:05:14] Prevents Nc4.} (19. Nh4 $17) 19... h5 {[%emt 0:01:18]} 20. g5 $2 {[%emt 0:02:48] [#]} (20. Nf1) 20... Qf4 {[%emt 0:03:51]} (20... Nxf2 $142 $1 {[%mdl 512]} 21. Kxf2 Qg3+ 22. Kf1 Be4 23. Bxe4 Qxh3+ 24. Ke2 dxe4) 21. h4 {[%emt 0:03:27]} Bf5 {[%emt 0:02:17]} 22. Nxf5 {[%emt 0:01:10]} Qxf5 {[%emt 0:00:08] Really sharp!} 23. Bf1 {[%emt 0:01:20]} Qg4+ {[%emt 0:00:48]} 24. Bg2 {[%emt 0:00:49]} ({Reject} 24. Kh1 Nc4 25. Bg2 Ne5 $19) 24... Nc4 {[%emt 0:00:25][%cal Ba5c4,Bc4e5,Be5g4][%mdl 32]} 25. Kh1 $2 {[%emt 0:00:56]} (25. Qd3) 25... Ne5 {[%emt 0:01:56] Pair of Knights!} 26. Rg1 {[%emt 0:03:15]} (26. Kg1 $142 Ng6 27. Be3) 26... Qf4 {[%emt 0:02:00] ( -> ...Nxf3)} 27. Qc1 {[%emt 0:01:40]} Ng4 {[%emt 0:00:54]} ({Worse is} 27... Nxf3 28. Qxf4 Bxf4 29. Bxf3 $11) ({Not} 27... Qg4 $2 28. Qe3 $19) 28. Qf1 {[%emt 0:00:57]} (28. Rf1 $19 Qd6 29. Qb2) 28... Qg3 {[%emt 0:00:42]} 29. fxg3 {[%emt 0:00:27]} Nxg3# {[%emt 0:00:05] Weighted Error Value: White=1.27/Black=0.83} 0-1

[Event "FIDE CB Open 2022"]
[Site "Ceske Budejovice"]
[Date "2022.07.06"]
[Round "6.24"]
[White "Hiermann, Dietmar"]
[Black "Zaza, Martin"]
[Result "1/2-1/2"]
[ECO "B01"]
[WhiteElo "2224"]
[BlackElo "1911"]
[Annotator "TA"]
[PlyCount "106"]
[EventDate "2022.07.01"]
[EventType "swiss"]
[EventCountry "CZE"]
[SourceTitle "playchess.com"]
[Source "ChessBase"]
[SourceQuality "1"]
[TimeControl "40/5400+30:1800+30"]

{[%evp 15,106,43,50,-34,-20,-222,-208,-210,-211,-350,-346,-664,-662,-571,0,0,205,152,239,-14,-20,-14,-27,-68,33,30,119,120,118,85,52,59,127,122,124,40,54,0,0,0,19,0,36,0,0,0,0,0,9,0,0,0,0,0,0,0,0,0,0,0,0,-12,-26,-24,-34,-66,-62,-312,-314,-298,-292,-266,-268,-232,-137,-149,-127,-159,0,0,0,0,0,0,0,0,0,0,0,0,0,0,0]} 1. e4 {[%emt 0:00:08]} d5 {[%emt 0:00:07]} 2. exd5 {[%emt 0:00:05]} Nf6 {[%emt 0:00:05]} 3. d4 {[%emt 0:00:14][%cal Bd2d4,Bd4d5][%mdl 32]} Bg4 {[%emt 0:00:18]} 4. f3 {[%emt 0:01:57]} Bf5 {[%emt 0:00:17]} 5. Bb5+ {[%emt 0:01:34]} Nbd7 {[%emt 0:00:36]} 6. c4 {[%emt 0:03:32]} e6 {[%emt 0:01:37]} 7. dxe6 {[%emt 0:00:30]} Bxe6 {[%emt 0:00:06]} 8. d5 {[%emt 0:01:27]} Bf5 $1 {[%emt 0:00:59]} 9. Be3 {[%emt 0:01:42] Prevents Bc5. B01: Scandinavian Defence.} (9. Nc3 $14) 9... Bb4+ $15 {[%emt 0:01:45]} 10. Nd2 $2 {[%emt 0:03:15]} (10. Bd2 $11 {and White has nothing to worry.} Bxd2+ 11. Nxd2) 10... Qe7 $19 {[%emt 0:04:23]} 11. Qe2 {[%emt 0:03:11] [#] Black is clearly better.} O-O-O $146 {[%emt 0:00:48]} ({Predecessor:} 11... O-O 12. Bxd7 Nxd7 13. g4 Bg6 14. Nh3 Rfe8 15. Kf2 Qf6 16. Nb3 Ne5 17. Kg2 Nxf3 {0-1 (28) Nguyen T Diem,H-Chau Thi Ngoc,G (2182) Dong Thap 2004}) 12. Bxa7 {[%emt 0:11:04]} (12. a3 $142 Bc5 13. Bg5) 12... Bxd2+ {[%emt 0:03:11]} 13. Kxd2 $2 {[%emt 0:00:27]} (13. Kf1 Qb4 14. Rd1) 13... Qb4+ {[%emt 0:00:07]} 14. Kd1 {[%emt 0:00:18] [#]} Rde8 $2 {[%emt 0:01:19]} ({Black should play} 14... Nxd5 $1 $19 {[%cal Od7c5][%mdl 512] ( -> ...Nc5!)} 15. Qd2 (15. cxd5 $2 Nb6 $19) 15... Nc5 $1 16. Qxb4 Nxb4+ 17. Ke2 b6 18. Bxb6 cxb6) 15. Qd2 $11 {[%emt 0:00:41]} Qxd2+ {[%emt 0:04:01]} (15... Nxd5 $1 $11 16. Ne2 (16. Bxd7+ Bxd7 17. cxd5 Qa4+ 18. b3 Qxa7 $15) 16... c6) 16. Kxd2 $16 {[%emt 0:00:42] Threatens to win with Bd4.} b6 {[%emt 0:00:05]} (16... c6 $16) 17. Bc6 $2 {[%emt 0:01:44]} (17. Ne2 $18) 17... Re7 $11 {[%emt 0:01:40]} 18. Ne2 {[%emt 0:04:52] Hoping for Nd4.} Ne5 $1 {[%emt 0:02:07]} 19. Nd4 {[%emt 0:01:06]} Bd7 {[%emt 0:03:00]} (19... Nxc4+ $15 20. Kc3 Ne3) 20. Bxd7+ {[%emt 0:00:15]} Nfxd7 {[%emt 0:00:15]} (20... Rxd7 $11 {remains equal.} 21. Kc3 Kb7) 21. b3 $16 {[%emt 0:00:29]} Kb7 {[%emt 0:02:12]} 22. a4 {[%emt 0:15:53][%cal Oa4a5]} Kxa7 {[%emt 0:08:49]} 23. f4 {[%emt 0:00:30]} Nxc4+ {[%emt 0:00:08]} 24. bxc4 {[%emt 0:00:17]} Re4 {[%emt 0:00:05][%csl LRd4,LRf4]} 25. Nc6+ {[%emt 0:02:02]} ({White should try} 25. Kc3 $1 $16) 25... Kb7 {[%emt 0:00:06]} 26. a5 {[%emt 0:01:59] Black must now prevent axb6.} Rxc4 {[%emt 0:10:13]} 27. axb6 {[%emt 0:00:51]} Kxb6 {[%emt 0:02:07]} 28. g3 {[%emt 0:06:08] Rhb1+ is the strong threat.} Kc5 {[%emt 0:06:20]} 29. Ra5+ {[%emt 0:08:43]} (29. Kd3 $5 {[%cal Ra1a5]} Kxd5 30. Ne7+ Kc5 31. Ra7 Rd4+ 32. Ke3 $11) 29... Kd6 {[%emt 0:00:10]} 30. Kd3 {[%emt 0:01:21]} Rc5 {[%emt 0:00:30]} 31. Rxc5 {[%emt 0:00:15]} Nxc5+ $11 {[%emt 0:00:05][%mdl 4096] Endgame KRN-KRN} 32. Kc4 {[%emt 0:00:07]} Re8 {[%emt 0:02:39]} 33. Ne5 {[%emt 0:00:22]} Re7 {[%emt 0:00:12]} 34. Kd4 {[%emt 0:02:19] aiming for Nc4+.} Nb3+ {[%emt 0:00:42]} 35. Kc3 {[%emt 0:00:07]} Nc5 {[%emt 0:00:18]} 36. Rd1 {[%emt 0:01:26]} f6 {[%emt 0:00:29]} 37. Nc4+ {[%emt 0:00:08]} Kd7 {[%emt 0:00:06]} 38. Kb4 {[%emt 0:00:35]} Nb7 {[%emt 0:00:26]} 39. Rd2 {[%emt 0:00:56]} Re4 {[%emt 0:00:30]} 40. Kc3 {[%emt 0:00:09]} Nd6 $1 {[%emt 0:00:57]} 41. Na3 {[%emt 0:31:38]} (41. Nxd6 $15 Kxd6 42. Rd3) 41... Ra4 $1 $19 {[%emt 0:34:23]} 42. Nc2 {[%emt 0:02:05]} Ne4+ {[%emt 0:02:11]} 43. Kb3 {[%emt 0:00:06]} Nxd2+ {[%emt 0:00:05]} 44. Kxa4 {[%emt 0:00:06] [#] KN-KN} Nf1 {[%emt 0:00:03] Against Ne3} (44... Kd6 $1 $19 {[%cal Rd6d5]} 45. Ne3 Kc5) 45. Kb5 {[%emt 0:00:13]} Nxh2 {[%emt 0:00:11]} 46. Kc5 {[%emt 0:00:18] [#]} g5 $2 {[%emt 0:01:29]} (46... h5 $1 $17 {And now ...Nf1 would win.} 47. Ne3 Nf3) 47. fxg5 $11 {[%emt 0:00:27] The position is equal.} fxg5 {[%emt 0:00:05]} 48. Ne3 {[%emt 0:00:10]} h5 {[%emt 0:00:24]} 49. Kd4 {[%emt 0:00:19]} h4 {[%emt 0:00:59]} 50. gxh4 {[%emt 0:00:14]} gxh4 {[%emt 0:00:09]} 51. Ke4 {[%emt 0:00:19]} h3 {[%emt 0:00:15]} 52. Kf4 {[%emt 0:02:03]} Ng4 {[%emt 0:01:03]} 53. Nxg4 {[%emt 0:00:17]} Kd6 {[%emt 0:00:09] And White is the lucky defender.  Weighted Error Value: White=0.54/Black=0.33} 1/2-1/2

[Event "FIDE CB Open 2022"]
[Site "Ceske Budejovice"]
[Date "2022.07.06"]
[Round "6.25"]
[White "Milovs, Daniels"]
[Black "Abdulla, Khayala"]
[Result "0-1"]
[ECO "A31"]
[WhiteElo "1926"]
[BlackElo "2207"]
[Annotator "TA"]
[PlyCount "80"]
[EventDate "2022.07.01"]
[EventType "swiss"]
[EventCountry "CZE"]
[SourceTitle "playchess.com"]
[Source "ChessBase"]
[SourceQuality "1"]
[TimeControl "40/5400+30:1800+30"]

{[%evp 30,80,48,45,47,47,54,53,39,24,81,79,132,113,153,168,250,256,347,316,412,24,0,2,66,26,37,18,16,0,0,0,0,0,0,-11,8,8,12,-347,-252,-252,-252,-425,-237,-29993,-29994,-29997,-29998,-29998,-29997,-29997,-29998]} 1. e4 {[%emt 0:07:28]} c5 {[%emt 0:00:08]} 2. Nf3 {[%emt 0:00:04]} e6 {[%emt 0:00:13]} 3. d4 {[%emt 0:00:03]} cxd4 {[%emt 0:00:28]} 4. Nxd4 {[%emt 0:00:05]} a6 {[%emt 0:00:10]} 5. c4 {[%emt 0:00:03]} Nf6 {[%emt 0:00:32]} 6. Nc3 {[%emt 0:00:09]} Qc7 {[%emt 0:00:05]} 7. a3 {[%emt 0:00:08]} b6 {[%emt 0:00:16]} 8. Be3 {[%emt 0:00:22]} Bb7 {[%emt 0:00:05]} 9. f3 {[%emt 0:00:05]} Be7 {[%emt 0:00:13]} 10. Be2 {[%emt 0:00:29]} d6 {[%emt 0:00:18]} 11. O-O {[%emt 0:02:51]} Nbd7 {[%emt 0:00:04]} 12. Rc1 {[%emt 0:00:29]} Rc8 {[%emt 0:00:21]} 13. b4 {[%emt 0:02:34]} Qb8 {[%emt 0:02:22]} 14. Nb3 {[%emt 0:03:40]} Bd8 {[%emt 0:02:09]} 15. Qd2 {[%emt 0:01:44]} O-O {[%emt 0:05:50]} 16. Rfd1 {[%emt 0:01:46]} Bc7 {[%emt 0:00:20][%cal Od6d5] A31: Symmetrical English: 2 Nf3 Nf6 3 d4.} 17. Bf4 {[%emt 0:01:04][%cal Rf4d6]} Ne5 {[%emt 0:09:53][%cal Od6d5]} 18. Bxe5 {[%emt 0:00:24]} dxe5 {[%emt 0:00:06] White is slightly better.} 19. Qe3 {[%emt 0:01:49]} Nh5 {[%emt 0:02:43]} (19... Bc6 $11 {remains equal.}) 20. c5 $16 {[%emt 0:04:32]} b5 {[%emt 0:10:31] [#]} (20... bxc5 $142 21. Nxc5 Bb6) 21. a4 $1 {[%emt 0:08:19]} bxa4 {[%emt 0:11:30]} 22. Nxa4 {[%emt 0:00:10] [#]} Bc6 $146 {[%emt 0:07:16]} (22... Nf4 {keeps fighting.}) ({Predecessor:} 22... Nf4 23. Nc3 Nxe2+ 24. Qxe2 Bc6 25. Qxa6 Qxb4 26. Qxc6 Qxb3 27. Nb5 Ba5 28. Qa6 Rxc5 29. Qxa5 Rxc1 30. Rxc1 {0-1 (34) Sergeev,V (2162)-Gurevich,D (2390) Chess.com INT 2019}) 23. Nb6 $18 {[%emt 0:01:01]} Bxb6 {[%emt 0:00:33]} 24. cxb6 {[%emt 0:00:02]} Ba4 {[%emt 0:00:52]} 25. Na5 {[%emt 0:16:31]} Bxd1 $11 {[%emt 0:05:00]} 26. Rxd1 {[%emt 0:05:27] aiming for b7.} Nf4 {[%emt 0:04:10]} (26... Rc2 $11) 27. Bf1 {[%emt 0:03:45]} Rc2 {[%emt 0:08:42]} 28. g3 {[%emt 0:14:08]} Ng6 {[%emt 0:00:32]} 29. Rd7 {[%emt 0:05:12]} Rd8 {[%emt 0:08:57]} 30. Rxd8+ {[%emt 0:02:48]} Qxd8 {[%emt 0:00:03]} 31. b7 {[%emt 0:00:21] Nc4 is the strong threat.} Nf8 $1 {[%emt 0:01:44]} 32. Nb3 {[%emt 0:10:30]} h6 {[%emt 0:14:23] Strongly threatening ...Rb2.} 33. Nc5 $1 {[%emt 0:01:21] Threatens to win with Qd3.} Qb6 {[%emt 0:00:31]} (33... Qd2 $2 34. Qxd2 Rxd2 35. b8=Q $18) 34. Qd3 $2 {[%emt 0:04:12][%mdl 8192]} (34. Bd3 $2 Ra2 35. Bc4 Ra4 $19) (34. Qa3 $1 $11) 34... Rc1 {[%emt 0:01:13]} 35. Qxa6 {[%emt 0:01:26]} Qxb4 $40 {[%emt 0:00:18][%mdl 128] Black attacks with force.} 36. Qd6 {[%emt 0:00:34]} (36. Nd3 {was the only chance.} Qd4+ 37. Kg2) 36... Qb5 {[%emt 0:02:37]} ({Not} 36... Nd7 37. Nxd7 Qxd6 38. b8=Q+ Qxb8 39. Nxb8 $11) (36... Qe1 $142 {[%csl Gc1][%cal Re1f1]} 37. Qd3 (37. Qxf8+ {leads to mate.} Kh7) 37... Rb1) 37. Qxf8+ $2 {[%emt 0:02:07] [#]} (37. Nd3 $19 Rb1 38. b8=Q Qxb8 39. Qxb8 Rxb8 40. Nxe5) 37... Kh7 {[%emt 0:00:31][%csl Gc1][%cal Rb5f1] Black mates.} ({And not} 37... Kxf8 38. b8=Q+ Qxb8 39. Nd7+ Ke7 40. Nxb8 $15) 38. Kf2 {[%emt 0:01:14]} Qxf1+ {[%emt 0:00:31]} 39. Ke3 {[%emt 0:00:02]} Rc3+ {[%emt 0:00:09]} 40. Kd2 {[%emt 0:00:10]} Qc1+ {[%emt 0:00:08] What a bad dream for White.  Weighted Error Value: White=0.87/Black=0.34} 0-1

[Event "FIDE CB Open 2022"]
[Site "Ceske Budejovice"]
[Date "2022.07.06"]
[Round "6.26"]
[White "Svanda, Adam"]
[Black "Koch-Muller, Oscar"]
[Result "0-1"]
[ECO "A14"]
[WhiteElo "1918"]
[BlackElo "2115"]
[Annotator "TA"]
[PlyCount "82"]
[EventDate "2022.07.01"]
[EventType "swiss"]
[EventCountry "CZE"]
[SourceTitle "playchess.com"]
[Source "ChessBase"]
[SourceQuality "1"]
[TimeControl "40/5400+30:1800+30"]

{[%evp 10,82,27,-6,3,-4,22,-26,-20,-47,-55,-119,12,-104,-82,-89,-79,-76,-60,-156,-159,-203,-201,-201,-183,-183,-181,-194,-191,-231,-204,-225,-219,-352,-345,-344,-331,-341,-366,-480,-502,-463,-285,-260,-223,-222,-214,-220,-207,-224,-202,-203,-149,-243,-243,-252,-240,-247,-279,-248,-255,-372,-379,-400,-403,-743,-774,-633,-548,-621,-617,-552,-534,-1081,-1026]} 1. c4 {[%emt 0:00:08]} e6 {[%emt 0:00:22]} 2. g3 {[%emt 0:00:14]} Nf6 {[%emt 0:00:19]} 3. Bg2 {[%emt 0:00:06]} d5 {[%emt 0:00:20]} 4. Nf3 {[%emt 0:00:54]} Be7 {[%emt 0:00:12]} 5. O-O {[%emt 0:04:42]} O-O {[%emt 0:00:04]} 6. d3 {[%emt 0:00:30]} Nc6 {[%emt 0:00:04] A14: English Opening: 1...e6 with b3 by White.} 7. a3 {[%emt 0:01:42]} a5 {[%emt 0:00:23] Prevents b4.} 8. b3 {[%emt 0:00:57]} (8. Nc3 $142) 8... d4 $11 {[%emt 0:01:49] Black has an edge.} 9. Bb2 {[%emt 0:05:58]} e5 {[%emt 0:00:50]} 10. e3 {[%emt 0:02:46] [#]} (10. Qc1 $15) 10... Bg4 {[%emt 0:10:01] [#]} ({Black should play} 10... dxe3 $1 $17 {aiming for ...Ng4.} 11. fxe3 Ng4) 11. e4 $146 {[%emt 0:02:45]} (11. exd4 $1 $11 exd4 12. h3) ({Predecessor:} 11. h3 Bf5 12. e4 Bc8 13. Nbd2 Nd7 14. Qe2 Nc5 15. Rfb1 h5 16. b4 axb4 17. axb4 Rxa1 18. Bxa1 {0-1 (44) Alvarez,J (2102)-Pinto Pinares,M (2200) Santiago de Chile 2008}) 11... Qd7 {[%emt 0:01:40]} 12. Nbd2 {[%emt 0:01:27]} Rae8 {[%emt 0:24:11]} 13. Qc2 {[%emt 0:01:50]} Nh5 {[%emt 0:03:20]} 14. Ne1 {[%emt 0:01:46] White is now going downhill.} (14. Rfb1 $15) 14... Be2 $17 {[%emt 0:01:54] Black is much more active. The white rooks are badly placed.} 15. f3 {[%emt 0:03:26] [#] Rf2 is the strong threat.} Bxf1 {[%emt 0:00:11]} 16. Nxf1 {[%emt 0:00:21]} g6 {[%emt 0:03:57]} 17. Bc1 {[%emt 0:00:32]} Ng7 {[%emt 0:00:05]} 18. Bh6 {[%emt 0:02:36]} Nd8 {[%emt 0:01:54]} 19. h4 {[%emt 0:01:54]} f6 {[%emt 0:02:16][%cal Bf7f6,Bf6f5][%mdl 32]} 20. Qd2 {[%emt 0:00:52]} Nf7 {[%emt 0:01:08]} 21. Nh2 {[%emt 0:02:10]} (21. Bxg7 $142 Kxg7 22. Nc2) 21... Nxh6 $19 {[%emt 0:02:08]} 22. Qxh6 {[%emt 0:00:06]} f5 {[%emt 0:02:10]} 23. Bh3 {[%emt 0:01:06]} Qd6 {[%emt 0:01:09]} 24. g4 {[%emt 0:03:40]} fxe4 {[%emt 0:06:00]} 25. fxe4 {[%emt 0:00:19]} Qf6 {[%emt 0:01:59] And now ...Qf2+ would win.} 26. Nef3 {[%emt 0:00:15]} Qf4 {[%emt 0:01:23]} 27. Qxf4 {[%emt 0:00:31]} Rxf4 {[%emt 0:01:44]} 28. g5 {[%emt 0:01:36]} Bd6 {[%emt 0:02:10]} 29. Kg2 {[%emt 0:03:02]} Nh5 {[%emt 0:02:54]} 30. Bg4 {[%emt 0:00:38]} Ref8 {[%emt 0:04:15]} 31. Bxh5 {[%emt 0:00:54]} (31. b4 $17 {was necessary.}) 31... gxh5 {[%emt 0:00:11]} 32. Ra2 {[%emt 0:00:05]} b6 {[%emt 0:02:17]} 33. Kg3 {[%emt 0:01:03]} Kg7 {[%emt 0:01:31]} 34. Ra1 {[%emt 0:01:22]} h6 {[%emt 0:01:34]} 35. gxh6+ {[%emt 0:02:00]} (35. a4 $142) 35... Kxh6 {[%emt 0:00:34]} 36. a4 {[%emt 0:00:44]} Rg8+ {[%emt 0:01:57]} 37. Ng5 {[%emt 0:00:25]} (37. Kh3 $142) 37... Be7 {[%emt 0:02:36] Black is clearly winning.} 38. Nhf3 {[%emt 0:00:11]} Rg4+ {[%emt 0:07:20]} 39. Kh3 {[%emt 0:00:31]} Bxg5 {[%emt 0:03:35]} 40. hxg5+ {[%emt 0:01:20]} Kh7 {[%emt 0:00:58] Strongly threatening ...Rf8.} 41. Rf1 {[%emt 0:31:36]} Rf8 {[%emt 0:31:04] Weighted Error Value: White=0.60/Black=0.21 (precise)} 0-1